[Event "Late-Titled-Tuesday-Blitz-February-06-2024"]
[Site "Chess.com"]
[Date "2024.02.06"]
[Round "8"]
[White "ChessBrainiacOnTwitch"]
[Black "Payyappat"]
[Result "0-1"]
[WhiteElo "2809"]
[BlackElo "2540"]
[TimeControl "180+1"]
[EndTime "15:29:14 PST"]
[Termination "Payyappat won on time"]

1. e4 {[%clk 0:03:00.9]} 1... c6 {[%clk 0:02:56.8]} 2. d4 {[%clk 0:02:58.1]}
2... d5 {[%clk 0:02:57.7]} 3. e5 {[%clk 0:02:58.5]} 3... Bf5 {[%clk 0:02:57.2]}
4. h4 {[%clk 0:02:58.7]} 4... Qc7 {[%clk 0:02:56.5]} 5. c4 {[%clk 0:02:51]} 5...
e6 {[%clk 0:02:50.5]} 6. Nc3 {[%clk 0:02:50.5]} 6... h5 {[%clk 0:02:46.3]} 7.
Nf3 {[%clk 0:02:43.4]} 7... Nd7 {[%clk 0:02:42.1]} 8. Bg5 {[%clk 0:02:40.6]}
8... dxc4 {[%clk 0:02:39.2]} 9. Bxc4 {[%clk 0:02:40.8]} 9... Nb6 {[%clk
0:02:39.8]} 10. Bb3 {[%clk 0:02:41.1]} 10... Ne7 {[%clk 0:02:38.2]} 11. O-O
{[%clk 0:02:40.9]} 11... Ned5 {[%clk 0:02:33.1]} 12. Rc1 {[%clk 0:02:41.2]}
12... Nxc3 {[%clk 0:02:23.2]} 13. bxc3 {[%clk 0:02:42.1]} 13... Be7 {[%clk
0:02:23.7]} 14. c4 {[%clk 0:02:36.9]} 14... O-O-O {[%clk 0:02:13.7]} 15. d5
{[%clk 0:02:32.3]} 15... exd5 {[%clk 0:02:11.7]} 16. cxd5 {[%clk 0:02:29.2]}
16... Bxg5 {[%clk 0:02:04.2]} 17. d6 {[%clk 0:02:27.6]} 17... Bxc1 {[%clk
0:02:02.6]} 18. Qxc1 {[%clk 0:02:22.1]} 18... Qd7 {[%clk 0:02:00.3]} 19. a4
{[%clk 0:02:12.4]} 19... Be6 {[%clk 0:01:56.3]} 20. a5 {[%clk 0:02:06.5]} 20...
Bxb3 {[%clk 0:01:49.2]} 21. axb6 {[%clk 0:02:06.2]} 21... a6 {[%clk 0:01:42.9]}
22. Nd4 {[%clk 0:02:06.3]} 22... Bd5 {[%clk 0:01:38.1]} 23. Qc5 {[%clk
0:02:06.4]} 23... Kb8 {[%clk 0:01:34.9]} 24. Ra1 {[%clk 0:02:05.5]} 24... Rhe8
{[%clk 0:01:19.6]} 25. Re1 {[%clk 0:01:44.1]} 25... f6 {[%clk 0:01:09.3]} 26. f4
{[%clk 0:01:40.8]} 26... fxe5 {[%clk 0:01:08.7]} 27. fxe5 {[%clk 0:01:41.7]}
27... Qg4 {[%clk 0:01:07.4]} 28. Re2 {[%clk 0:01:39.2]} 28... Rxe5 {[%clk
0:01:00.9]} 29. Rd2 {[%clk 0:00:03.9]} 29... Rf8 {[%clk 0:00:15.7]} 30. Qc1
{[%clk 0:00:02.5]} 30... Qxh4 {[%clk 0:00:14.8]} 31. d7 {[%clk 0:00:02]} 31...
Re1+ {[%clk 0:00:14.6]} 32. Qxe1 {[%clk 0:00:01.7]} 32... Qxe1+ {[%clk
0:00:15.5]} 33. Kh2 {[%clk 0:00:02.6]} 33... Qh4+ {[%clk 0:00:15.8]} 34. Kg1
{[%clk 0:00:02.6]} 34... Qd8 {[%clk 0:00:16.5]} 35. Nb3 {[%clk 0:00:01.7]} 35...
Qxd7 {[%clk 0:00:16.2]} 36. Nc5 {[%clk 0:00:02.6]} 36... Qg4 {[%clk 0:00:16.1]}
37. Nd3 {[%clk 0:00:02.4]} 37... Re8 {[%clk 0:00:15.9]} 38. Rf2 {[%clk
0:00:01.6]} 38... Re2 {[%clk 0:00:15.8]} 39. Nf4 {[%clk 0:00:01.5]} 39... Rxf2
{[%clk 0:00:15.5]} 40. Kxf2 {[%clk 0:00:01.4]} 40... Qxf4+ {[%clk 0:00:15.8]}
41. Ke1 {[%clk 0:00:02.3]} 41... Qg3+ {[%clk 0:00:16.3]} 42. Kd2 {[%clk
0:00:03.2]} 42... Qxg2+ {[%clk 0:00:17.1]} 43. Kc1 {[%clk 0:00:04.1]} 43... h4
{[%clk 0:00:17.8]} 44. Kb1 {[%clk 0:00:05]} 44... h3 {[%clk 0:00:18.7]} 0-1

[Event "Late-Titled-Tuesday-Blitz-February-06-2024"]
[Site "Chess.com"]
[Date "2024.02.06"]
[Round "8"]
[White "jinbojinbo"]
[Black "Atousa"]
[Result "1-0"]
[WhiteElo "2629"]
[BlackElo "2482"]
[TimeControl "180+1"]
[EndTime "15:29:24 PST"]
[Termination "jinbojinbo won on time"]

1. Nf3 {[%clk 0:03:00.9]} 1... d5 {[%clk 0:02:58.9]} 2. e3 {[%clk 0:03:00.5]}
2... Nf6 {[%clk 0:02:57.3]} 3. c4 {[%clk 0:02:59.7]} 3... e6 {[%clk 0:02:56.7]}
4. b3 {[%clk 0:02:59.4]} 4... Be7 {[%clk 0:02:56.5]} 5. Bb2 {[%clk 0:02:58.9]}
5... O-O {[%clk 0:02:56.6]} 6. Be2 {[%clk 0:02:57]} 6... c5 {[%clk 0:02:56.9]}
7. cxd5 {[%clk 0:02:56.9]} 7... Nxd5 {[%clk 0:02:55.6]} 8. O-O {[%clk
0:02:52.1]} 8... Nc6 {[%clk 0:02:53.7]} 9. d4 {[%clk 0:02:46]} 9... cxd4 {[%clk
0:02:52.4]} 10. Nxd4 {[%clk 0:02:46.7]} 10... Nxd4 {[%clk 0:02:51.9]} 11. Bxd4
{[%clk 0:02:47.6]} 11... Bf6 {[%clk 0:02:52]} 12. Na3 {[%clk 0:02:39.7]} 12...
Bd7 {[%clk 0:02:46.8]} 13. Nc4 {[%clk 0:02:35.6]} 13... Rc8 {[%clk 0:02:23.3]}
14. Rc1 {[%clk 0:02:29.8]} 14... Bb5 {[%clk 0:02:10.3]} 15. a4 {[%clk
0:02:27.4]} 15... Ba6 {[%clk 0:01:55]} 16. Qd2 {[%clk 0:02:01]} 16... Bxd4
{[%clk 0:01:42.1]} 17. Qxd4 {[%clk 0:02:00.9]} 17... Nb6 {[%clk 0:01:40.9]} 18.
Qxd8 {[%clk 0:01:36]} 18... Rfxd8 {[%clk 0:01:39.2]} 19. Nxb6 {[%clk 0:01:35.8]}
19... axb6 {[%clk 0:01:11.2]} 20. Bxa6 {[%clk 0:01:23]} 20... bxa6 {[%clk
0:01:12.1]} 21. Rfd1 {[%clk 0:01:23.2]} 21... Kf8 {[%clk 0:01:09.4]} 22. Kf1
{[%clk 0:01:16.9]} 22... Rxd1+ {[%clk 0:01:02.7]} 23. Rxd1 {[%clk 0:01:16.7]}
23... Rc3 {[%clk 0:01:03.1]} 24. b4 {[%clk 0:01:08]} 24... Rc4 {[%clk
0:00:59.4]} 25. Rd8+ {[%clk 0:01:06.1]} 25... Ke7 {[%clk 0:00:59.1]} 26. Ra8
{[%clk 0:01:07]} 26... Rxb4 {[%clk 0:00:57.1]} 27. Rxa6 {[%clk 0:01:06.8]} 27...
Rb2 {[%clk 0:00:47.3]} 28. g4 {[%clk 0:01:06.3]} 28... h6 {[%clk 0:00:43.3]} 29.
Kg2 {[%clk 0:01:06.2]} 29... Kf6 {[%clk 0:00:43]} 30. h4 {[%clk 0:01:06]} 30...
Rb4 {[%clk 0:00:40.1]} 31. Kf3 {[%clk 0:01:05.3]} 31... Rb2 {[%clk 0:00:38.4]}
32. Ra7 {[%clk 0:01:03.6]} 32... Rb3 {[%clk 0:00:28]} 33. Kf4 {[%clk 0:00:55.9]}
33... g5+ {[%clk 0:00:26.6]} 34. Kg3 {[%clk 0:00:53.8]} 34... gxh4+ {[%clk
0:00:21.6]} 35. Kxh4 {[%clk 0:00:54.7]} 35... Kg6 {[%clk 0:00:22]} 36. Ra8
{[%clk 0:00:51.5]} 36... Kg7 {[%clk 0:00:22.4]} 37. Kg3 {[%clk 0:00:50.5]} 37...
Kf6 {[%clk 0:00:20.8]} 38. Kf3 {[%clk 0:00:46.2]} 38... Rb4 {[%clk 0:00:20.2]}
39. Kg3 {[%clk 0:00:43.2]} 39... Kg7 {[%clk 0:00:20.2]} 40. f4 {[%clk
0:00:41.4]} 40... Kf6 {[%clk 0:00:19.2]} 41. Kf3 {[%clk 0:00:41.7]} 41... e5
{[%clk 0:00:17.6]} 42. f5 {[%clk 0:00:22.8]} 42... h5 {[%clk 0:00:11.8]} 43.
gxh5 {[%clk 0:00:22.2]} 43... Kxf5 {[%clk 0:00:12.4]} 44. Ra6 {[%clk 0:00:11.8]}
44... Kg5 {[%clk 0:00:11.2]} 45. h6 {[%clk 0:00:12.2]} 45... e4+ {[%clk
0:00:02.7]} 46. Kg3 {[%clk 0:00:11.7]} 1-0

[Event "Late-Titled-Tuesday-Blitz-February-06-2024"]
[Site "Chess.com"]
[Date "2024.02.06"]
[Round "8"]
[White "manitodeplomo"]
[Black "Pelusiansky"]
[Result "1-0"]
[WhiteElo "2628"]
[BlackElo "2479"]
[TimeControl "180+1"]
[EndTime "15:29:24 PST"]
[Termination "manitodeplomo won by resignation"]

1. d4 {[%clk 0:03:00.9]} 1... d5 {[%clk 0:02:59]} 2. c4 {[%clk 0:03:01.2]} 2...
e6 {[%clk 0:02:59.3]} 3. Nf3 {[%clk 0:03:01.7]} 3... Nf6 {[%clk 0:02:58.5]} 4.
Nc3 {[%clk 0:03:02.1]} 4... a6 {[%clk 0:02:58.7]} 5. Bg5 {[%clk 0:02:59]} 5...
dxc4 {[%clk 0:02:57]} 6. a4 {[%clk 0:02:58.8]} 6... Bb4 {[%clk 0:02:51.3]} 7. e3
{[%clk 0:02:44.7]} 7... c5 {[%clk 0:02:39.8]} 8. Bxc4 {[%clk 0:02:43.1]} 8...
Nc6 {[%clk 0:02:39.7]} 9. O-O {[%clk 0:02:41.9]} 9... cxd4 {[%clk 0:02:32.6]}
10. exd4 {[%clk 0:02:42.8]} 10... Be7 {[%clk 0:02:28.3]} 11. Qd3 {[%clk
0:02:25.3]} 11... Nb4 {[%clk 0:02:20.4]} 12. Qe2 {[%clk 0:02:22.2]} 12... O-O
{[%clk 0:02:18.5]} 13. Rad1 {[%clk 0:02:20.4]} 13... Bd7 {[%clk 0:01:52]} 14.
Rfe1 {[%clk 0:02:14.8]} 14... Rc8 {[%clk 0:01:40]} 15. Ne5 {[%clk 0:02:09]}
15... Be8 {[%clk 0:00:53.2]} 16. h4 {[%clk 0:02:03.4]} 16... h6 {[%clk
0:00:44.1]} 17. Bc1 {[%clk 0:01:56]} 17... Nbd5 {[%clk 0:00:40.9]} 18. Rd3
{[%clk 0:01:53.8]} 18... Nxc3 {[%clk 0:00:36.9]} 19. bxc3 {[%clk 0:01:51.4]}
19... Nd5 {[%clk 0:00:34.1]} 20. Rg3 {[%clk 0:01:48.1]} 20... Bxh4 {[%clk
0:00:29.5]} 21. Rh3 {[%clk 0:01:41.4]} 21... Bg5 {[%clk 0:00:27.9]} 22. Bxd5
{[%clk 0:01:00.7]} 22... exd5 {[%clk 0:00:21.5]} 23. f4 {[%clk 0:00:37.1]} 23...
Bh4 {[%clk 0:00:20.1]} 24. Rf1 {[%clk 0:00:32.9]} 24... Bf6 {[%clk 0:00:18.2]}
25. Qh5 {[%clk 0:00:32.2]} 25... Bd7 {[%clk 0:00:12.1]} 26. f5 {[%clk
0:00:31.6]} 26... Bg5 {[%clk 0:00:08.6]} 27. Rg3 {[%clk 0:00:31]} 27... Bxc1
{[%clk 0:00:05]} 28. Rxc1 {[%clk 0:00:31.9]} 28... Bxa4 {[%clk 0:00:04.4]} 29.
f6 {[%clk 0:00:28.9]} 29... g6 {[%clk 0:00:01.5]} 30. Nxg6 {[%clk 0:00:26.5]}
30... Qxf6 {[%clk 0:00:02.2]} 31. Nxf8+ {[%clk 0:00:20.7]} 31... Kxf8 {[%clk
0:00:03.1]} 32. Rf1 {[%clk 0:00:20.8]} 32... Qe6 {[%clk 0:00:02.3]} 33. Rgf3
{[%clk 0:00:20.1]} 33... Be8 {[%clk 0:00:02.3]} 34. Rf6 {[%clk 0:00:20.3]} 34...
Qe3+ {[%clk 0:00:02.7]} 35. Kh1 {[%clk 0:00:20.5]} 35... Qg5 {[%clk 0:00:03.2]}
36. Qxh6+ {[%clk 0:00:15.6]} 36... Qxh6+ {[%clk 0:00:03.1]} 37. Rxh6 {[%clk
0:00:16.5]} 37... Rxc3 {[%clk 0:00:03.9]} 38. Rh8+ {[%clk 0:00:17]} 38... Ke7
{[%clk 0:00:03.6]} 39. Re1+ {[%clk 0:00:17.3]} 39... Kd7 {[%clk 0:00:04]} 40.
Rhxe8 {[%clk 0:00:17.8]} 40... Rc4 {[%clk 0:00:02.2]} 41. R8e7+ {[%clk
0:00:18.2]} 41... Kc6 {[%clk 0:00:02.8]} 42. Rxf7 {[%clk 0:00:17.6]} 42... Rxd4
{[%clk 0:00:03.4]} 43. Rc1+ {[%clk 0:00:17.8]} 43... Rc4 {[%clk 0:00:03.7]} 44.
Rxc4+ {[%clk 0:00:17.4]} 44... dxc4 {[%clk 0:00:04.6]} 45. g4 {[%clk 0:00:17.8]}
45... b5 {[%clk 0:00:04.3]} 46. g5 {[%clk 0:00:18.4]} 46... c3 {[%clk 0:00:05]}
47. g6 {[%clk 0:00:18.5]} 47... c2 {[%clk 0:00:04.1]} 48. Rf1 {[%clk 0:00:18.6]}
48... b4 {[%clk 0:00:04.7]} 49. g7 {[%clk 0:00:18.9]} 49... b3 {[%clk
0:00:05.6]} 50. g8=Q {[%clk 0:00:19.3]} 1-0

[Event "Late-Titled-Tuesday-Blitz-February-06-2024"]
[Site "Chess.com"]
[Date "2024.02.06"]
[Round "8"]
[White "WPWPWP-2015"]
[Black "kai_nov"]
[Result "1-0"]
[WhiteElo "2488"]
[BlackElo "2308"]
[TimeControl "180+1"]
[EndTime "15:29:24 PST"]
[Termination "WPWPWP-2015 won on time"]

1. e4 {[%clk 0:03:00.9]} 1... c5 {[%clk 0:02:59.4]} 2. Nf3 {[%clk 0:03:00.4]}
2... Nc6 {[%clk 0:02:59.5]} 3. d4 {[%clk 0:02:58.2]} 3... cxd4 {[%clk
0:03:00.4]} 4. Nxd4 {[%clk 0:02:59]} 4... Nf6 {[%clk 0:03:00.3]} 5. Nc3 {[%clk
0:02:59.5]} 5... e5 {[%clk 0:03:00.4]} 6. Ndb5 {[%clk 0:02:59.9]} 6... d6 {[%clk
0:03:00.5]} 7. Bg5 {[%clk 0:02:59.9]} 7... a6 {[%clk 0:03:00.7]} 8. Na3 {[%clk
0:02:59.4]} 8... b5 {[%clk 0:03:00.9]} 9. Nd5 {[%clk 0:02:58.5]} 9... Be7 {[%clk
0:03:00.5]} 10. Bxf6 {[%clk 0:02:58.9]} 10... Bxf6 {[%clk 0:03:01.4]} 11. c3
{[%clk 0:02:59]} 11... O-O {[%clk 0:03:00.5]} 12. Nc2 {[%clk 0:02:59.2]} 12...
Bg5 {[%clk 0:02:59.5]} 13. a4 {[%clk 0:02:59.2]} 13... bxa4 {[%clk 0:02:58]} 14.
Rxa4 {[%clk 0:02:59.4]} 14... a5 {[%clk 0:02:58.4]} 15. Bc4 {[%clk 0:02:59.6]}
15... Rb8 {[%clk 0:02:57.1]} 16. b3 {[%clk 0:02:59.9]} 16... Kh8 {[%clk
0:02:47.4]} 17. h4 {[%clk 0:02:58.7]} 17... Bh6 {[%clk 0:02:21.4]} 18. Nce3
{[%clk 0:02:58]} 18... Bxe3 {[%clk 0:02:05.2]} 19. Nxe3 {[%clk 0:02:58.9]} 19...
Ne7 {[%clk 0:02:04.9]} 20. h5 {[%clk 0:02:53.5]} 20... h6 {[%clk 0:01:59.8]} 21.
Ra2 {[%clk 0:02:47.3]} 21... Bb7 {[%clk 0:01:57.4]} 22. Nd5 {[%clk 0:02:36.8]}
22... Nxd5 {[%clk 0:01:51.6]} 23. exd5 {[%clk 0:02:29.5]} 23... Qg5 {[%clk
0:01:45.1]} 24. O-O {[%clk 0:02:22.2]} 24... Bc8 {[%clk 0:01:26.4]} 25. Rxa5
{[%clk 0:02:11]} 25... Bg4 {[%clk 0:01:20.5]} 26. Qc1 {[%clk 0:02:06.7]} 26...
Qxh5 {[%clk 0:01:18]} 27. Ra6 {[%clk 0:02:05.6]} 27... Rfd8 {[%clk 0:01:10.2]}
28. Qe3 {[%clk 0:01:54.5]} 28... Bd1 {[%clk 0:00:38.3]} 29. b4 {[%clk
0:01:50.7]} 29... Rbc8 {[%clk 0:00:22.3]} 30. Rc6 {[%clk 0:01:48.7]} 30... Ba4
{[%clk 0:00:18.4]} 31. b5 {[%clk 0:01:47.2]} 31... f5 {[%clk 0:00:16.7]} 32. Be2
{[%clk 0:01:43]} 32... Qh4 {[%clk 0:00:14.2]} 33. c4 {[%clk 0:01:36.8]} 33... e4
{[%clk 0:00:11.7]} 34. Qg3 {[%clk 0:01:27.2]} 34... Qf6 {[%clk 0:00:11]} 35. Qa3
{[%clk 0:01:15]} 35... Ra8 {[%clk 0:00:10]} 36. Qa1 {[%clk 0:00:57.7]} 36... Qg5
{[%clk 0:00:09.1]} 37. Qd4 {[%clk 0:00:54.5]} 37... Bc2 {[%clk 0:00:03.5]} 38.
b6 {[%clk 0:00:52.8]} 38... f4 {[%clk 0:00:03.8]} 39. f3 {[%clk 0:00:44.8]}
39... e3 {[%clk 0:00:01.4]} 40. b7 {[%clk 0:00:43.6]} 40... Rab8 {[%clk
0:00:01.7]} 41. Qb6 {[%clk 0:00:37.9]} 41... Bf5 {[%clk 0:00:02.3]} 42. Re1
{[%clk 0:00:32.4]} 42... Bh3 {[%clk 0:00:02.4]} 43. Bf1 {[%clk 0:00:32.8]} 43...
Qg3 {[%clk 0:00:02.8]} 44. Re2 {[%clk 0:00:28.3]} 44... Bf5 {[%clk 0:00:02.5]}
45. Rxd6 {[%clk 0:00:26.3]} 45... Rg8 {[%clk 0:00:02.6]} 46. Qd4 {[%clk
0:00:18.9]} 46... Rxb7 {[%clk 0:00:01.6]} 47. Rxh6+ {[%clk 0:00:18.1]} 1-0

[Event "Late-Titled-Tuesday-Blitz-February-06-2024"]
[Site "Chess.com"]
[Date "2024.02.06"]
[Round "8"]
[White "Pachonpower"]
[Black "The_Straightforward_Rook"]
[Result "1/2-1/2"]
[WhiteElo "2297"]
[BlackElo "2413"]
[TimeControl "180+1"]
[EndTime "15:29:24 PST"]
[Termination "Game drawn by stalemate"]

1. b3 {[%clk 0:03:00.9]} 1... e5 {[%clk 0:02:55.3]} 2. Bb2 {[%clk 0:03:01.8]}
2... Nc6 {[%clk 0:02:55.7]} 3. e3 {[%clk 0:02:50.5]} 3... Nf6 {[%clk 0:02:55.3]}
4. Nf3 {[%clk 0:02:46.3]} 4... e4 {[%clk 0:02:44.2]} 5. Ne5 {[%clk 0:02:44.1]}
5... Bd6 {[%clk 0:02:39.5]} 6. Nc4 {[%clk 0:02:40.8]} 6... Be7 {[%clk 0:02:38]}
7. g3 {[%clk 0:02:37.3]} 7... h5 {[%clk 0:02:34.7]} 8. Bg2 {[%clk 0:02:37]} 8...
h4 {[%clk 0:02:33]} 9. Ne5 {[%clk 0:02:37]} 9... h3 {[%clk 0:02:30.6]} 10. Bf1
{[%clk 0:02:31.4]} 10... d6 {[%clk 0:02:24.6]} 11. Nxc6 {[%clk 0:02:29.1]} 11...
bxc6 {[%clk 0:02:25.5]} 12. Be2 {[%clk 0:02:28.8]} 12... a5 {[%clk 0:02:19.8]}
13. Nc3 {[%clk 0:02:27]} 13... Bf5 {[%clk 0:02:17.8]} 14. d3 {[%clk 0:02:22.2]}
14... Qd7 {[%clk 0:02:10.9]} 15. f3 {[%clk 0:02:21.9]} 15... exf3 {[%clk
0:01:46.4]} 16. Bxf3 {[%clk 0:02:22.8]} 16... d5 {[%clk 0:01:47]} 17. e4 {[%clk
0:02:19.3]} 17... dxe4 {[%clk 0:01:35.9]} 18. dxe4 {[%clk 0:02:20.2]} 18...
Qxd1+ {[%clk 0:01:29.6]} 19. Rxd1 {[%clk 0:02:21.1]} 19... Bg4 {[%clk
0:01:28.3]} 20. Ke2 {[%clk 0:02:18.5]} 20... Bxf3+ {[%clk 0:01:19.3]} 21. Kxf3
{[%clk 0:02:18.7]} 21... Bb4 {[%clk 0:01:14.8]} 22. Ne2 {[%clk 0:02:09.6]} 22...
a4 {[%clk 0:01:10.9]} 23. a3 {[%clk 0:02:08.9]} 23... Be7 {[%clk 0:01:05.2]} 24.
b4 {[%clk 0:02:08.9]} 24... c5 {[%clk 0:01:05.7]} 25. b5 {[%clk 0:02:06.1]}
25... Rb8 {[%clk 0:01:01.3]} 26. c4 {[%clk 0:02:05.6]} 26... c6 {[%clk
0:01:01.9]} 27. e5 {[%clk 0:02:03.2]} 27... Nd7 {[%clk 0:00:53.6]} 28. bxc6
{[%clk 0:02:02.3]} 28... Rxb2 {[%clk 0:00:52.2]} 29. Rxd7 {[%clk 0:01:57.8]}
29... Rb3+ {[%clk 0:00:45.1]} 30. Ke4 {[%clk 0:01:57.8]} 30... Rh6 {[%clk
0:00:41.5]} 31. Ra7 {[%clk 0:01:51.3]} 31... Rxc6 {[%clk 0:00:40]} 32. Rxa4
{[%clk 0:01:48.4]} 32... f6 {[%clk 0:00:35.6]} 33. Kd5 {[%clk 0:01:38.9]} 33...
Rc8 {[%clk 0:00:31.9]} 34. Nf4 {[%clk 0:01:34.5]} 34... fxe5 {[%clk 0:00:28.3]}
35. Kxe5 {[%clk 0:01:35.4]} 35... Bf6+ {[%clk 0:00:27.4]} 36. Kf5 {[%clk
0:01:34.9]} 36... Rb2 {[%clk 0:00:21.8]} 37. Re1+ {[%clk 0:01:33.9]} 37... Kf8
{[%clk 0:00:22.1]} 38. Re2 {[%clk 0:01:31]} 38... Rxe2 {[%clk 0:00:17.3]} 39.
Nxe2 {[%clk 0:01:31.9]} 39... Rb8 {[%clk 0:00:17.1]} 40. Nf4 {[%clk 0:01:27]}
40... Rb2 {[%clk 0:00:16.3]} 41. Nxh3 {[%clk 0:01:27.1]} 41... Rxh2 {[%clk
0:00:17]} 42. Nf4 {[%clk 0:01:27.5]} 42... Rf2 {[%clk 0:00:16.6]} 43. Ke6 {[%clk
0:01:19]} 43... Kg8 {[%clk 0:00:16.5]} 44. Ra5 {[%clk 0:01:13.9]} 44... Bd4
{[%clk 0:00:16.4]} 45. Kf5 {[%clk 0:01:09.5]} 45... Rf3 {[%clk 0:00:16.5]} 46.
g4 {[%clk 0:01:03.9]} 46... Be3 {[%clk 0:00:16.5]} 47. Kg6 {[%clk 0:01:00]}
47... Rxf4 {[%clk 0:00:16.7]} 48. Ra8+ {[%clk 0:00:58.3]} 48... Rf8 {[%clk
0:00:17.4]} 49. Rxf8+ {[%clk 0:00:59]} 49... Kxf8 {[%clk 0:00:16.9]} 50. a4
{[%clk 0:00:59.9]} 50... Bd4 {[%clk 0:00:16.9]} 51. a5 {[%clk 0:00:59.9]} 51...
Be5 {[%clk 0:00:15.9]} 52. Kf5 {[%clk 0:00:57.8]} 52... Bb8 {[%clk 0:00:15.9]}
53. Ke6 {[%clk 0:00:58]} 53... Ke8 {[%clk 0:00:15.8]} 54. Kd5 {[%clk 0:00:57.7]}
54... Ba7 {[%clk 0:00:13.1]} 55. Kc6 {[%clk 0:00:58.2]} 55... Kd8 {[%clk
0:00:09.1]} 56. Kb7 {[%clk 0:00:58.5]} 56... g5 {[%clk 0:00:07.5]} 57. a6 {[%clk
0:00:51.8]} 57... Kd7 {[%clk 0:00:06.4]} 58. Kxa7 {[%clk 0:00:48.2]} 58... Kc7
{[%clk 0:00:07]} 59. Ka8 {[%clk 0:00:48.6]} 59... Kc8 {[%clk 0:00:07.4]} 60. a7
{[%clk 0:00:47.8]} 60... Kc7 {[%clk 0:00:07.9]} 1/2-1/2

[Event "Late-Titled-Tuesday-Blitz-February-06-2024"]
[Site "Chess.com"]
[Date "2024.02.06"]
[Round "8"]
[White "KaydenTroffChess"]
[Black "DraningWaterHi"]
[Result "0-1"]
[WhiteElo "2834"]
[BlackElo "2255"]
[TimeControl "180+1"]
[EndTime "15:29:25 PST"]
[Termination "DraningWaterHi won by checkmate"]

1. d4 {[%clk 0:03:00.9]} 1... Nf6 {[%clk 0:02:56.6]} 2. Nf3 {[%clk 0:02:59.3]}
2... g6 {[%clk 0:02:52.5]} 3. Bg5 {[%clk 0:02:58.8]} 3... Bg7 {[%clk 0:02:52.6]}
4. Nc3 {[%clk 0:02:59.3]} 4... h6 {[%clk 0:02:49.7]} 5. Bh4 {[%clk 0:02:56.5]}
5... d5 {[%clk 0:02:45.7]} 6. Bxf6 {[%clk 0:02:56.7]} 6... exf6 {[%clk
0:02:45.1]} 7. g3 {[%clk 0:02:56.6]} 7... f5 {[%clk 0:02:45.2]} 8. h4 {[%clk
0:02:56.3]} 8... c6 {[%clk 0:02:44.9]} 9. h5 {[%clk 0:02:52.8]} 9... g5 {[%clk
0:02:45.1]} 10. e3 {[%clk 0:02:53.1]} 10... Bf6 {[%clk 0:02:45]} 11. Bd3 {[%clk
0:02:52.2]} 11... Be6 {[%clk 0:02:45.2]} 12. Ne2 {[%clk 0:02:48.6]} 12... Nd7
{[%clk 0:02:38.7]} 13. c3 {[%clk 0:02:47.6]} 13... Bg7 {[%clk 0:02:38.9]} 14.
Qc2 {[%clk 0:02:45.9]} 14... Qf6 {[%clk 0:02:38.7]} 15. c4 {[%clk 0:02:40.6]}
15... O-O {[%clk 0:02:38]} 16. Rc1 {[%clk 0:02:33.4]} 16... Rac8 {[%clk
0:02:32.9]} 17. b3 {[%clk 0:02:15.6]} 17... Nb6 {[%clk 0:02:31.4]} 18. Kf1
{[%clk 0:02:12.8]} 18... Rfd8 {[%clk 0:02:16.8]} 19. Ne5 {[%clk 0:02:09.4]}
19... Nd7 {[%clk 0:02:13.6]} 20. f4 {[%clk 0:02:07.3]} 20... dxc4 {[%clk
0:01:57.2]} 21. bxc4 {[%clk 0:02:00.9]} 21... c5 {[%clk 0:01:49.7]} 22. d5
{[%clk 0:01:37.5]} 22... Nxe5 {[%clk 0:01:49.6]} 23. fxe5 {[%clk 0:01:38]} 23...
Qxe5 {[%clk 0:01:49.7]} 24. dxe6 {[%clk 0:01:38]} 24... fxe6 {[%clk 0:01:50.6]}
25. Kf2 {[%clk 0:01:36.4]} 25... Rd7 {[%clk 0:01:40.4]} 26. Rcd1 {[%clk
0:01:28.3]} 26... Rcd8 {[%clk 0:01:39]} 27. Qb1 {[%clk 0:01:27.9]} 27... b6
{[%clk 0:01:38.4]} 28. Bc2 {[%clk 0:01:27.8]} 28... Qc7 {[%clk 0:01:30.3]} 29.
Rxd7 {[%clk 0:01:26.9]} 29... Rxd7 {[%clk 0:01:30.6]} 30. Rd1 {[%clk 0:01:27.3]}
30... Be5 {[%clk 0:01:28.9]} 31. Ba4 {[%clk 0:01:23.3]} 31... Rd6 {[%clk
0:01:24.6]} 32. Qb5 {[%clk 0:01:17.3]} 32... Rxd1 {[%clk 0:01:16.2]} 33. Qe8+
{[%clk 0:01:17]} 33... Kg7 {[%clk 0:01:16.7]} 34. Qg6+ {[%clk 0:01:17.1]} 34...
Kf8 {[%clk 0:01:15.1]} 35. Qxh6+ {[%clk 0:01:15.5]} 35... Bg7 {[%clk 0:01:14.8]}
36. Qxe6 {[%clk 0:01:06.9]} 36... Rd8 {[%clk 0:00:55.8]} 37. h6 {[%clk
0:01:04.8]} 37... Bh8 {[%clk 0:00:56.3]} 38. Qg6 {[%clk 0:00:55]} 38... Qe7
{[%clk 0:00:31.5]} 39. Kg2 {[%clk 0:00:33.2]} 39... Qf6 {[%clk 0:00:30.1]} 40.
Qh5 {[%clk 0:00:29.3]} 40... Qe7 {[%clk 0:00:22.4]} 41. Bc6 {[%clk 0:00:22.7]}
41... Qxe3 {[%clk 0:00:20.6]} 42. Bd5 {[%clk 0:00:22.4]} 42... Qe7 {[%clk
0:00:14.7]} 43. Nf4 {[%clk 0:00:15.2]} 43... gxf4 {[%clk 0:00:13.5]} 44. Qxf5+
{[%clk 0:00:13.9]} 44... Qf6 {[%clk 0:00:13.2]} 45. Qh7 {[%clk 0:00:09.7]} 45...
f3+ {[%clk 0:00:13.2]} 46. Kh3 {[%clk 0:00:07.5]} 46... f2 {[%clk 0:00:12.2]}
47. Qg8+ {[%clk 0:00:07.3]} 47... Ke7 {[%clk 0:00:11.5]} 48. Qh7+ {[%clk
0:00:08.2]} 48... Kd6 {[%clk 0:00:11.9]} 49. Bg2 {[%clk 0:00:06.1]} 49... f1=Q
{[%clk 0:00:11.9]} 50. Qb7 {[%clk 0:00:04.2]} 50... Q1f5+ {[%clk 0:00:11]} 51.
Kh2 {[%clk 0:00:04.6]} 51... Qxh6+ {[%clk 0:00:11.6]} 52. Kg1 {[%clk 0:00:05.2]}
52... Bd4# {[%clk 0:00:11.7]} 0-1